fUST/lending_fUST_20250401
["ID","MTS","AMOUNT","RATE_DAILY","PERIOD"]
[356947992,1743479448053,-523.54795414,0.00020676,2]
[356947994,1743479448063,-509.0754406,0.00020676,2]
[356947996,1743479448073,-505.18105973,0.00020676,2]
[356947998,1743479448083,-504.13513855,0.00020676,2]
[356948000,1743479448092,-504.3728752,0.00020676,2]
[356948002,1743479448102,-511.67094311,0.00020676,2]
[356948004,1743479448112,-505.78587028,0.00020676,2]
[356948006,1743479448122,-524.60595157,0.00020676,2]
[356948008,1743479448132,-507.4619885,0.00020676,2]
[356948010,1743479448142,-622.92947741,0.00020676,2]
[356948012,1743479448152,-505.8925677,0.00020676,2]
[356948014,1743479448162,-509.3380647,0.00020676,2]
[356948016,1743479448172,-524.38537033,0.00020676,2]
[356948018,1743479448182,-503.32319182,0.00020676,2]
[356948020,1743479448191,-504.3665254,0.00020676,2]
[356948022,1743479448201,-251.20480398,0.00020676,2]
[356948024,1743479448210,-505.11017279,0.00020676,2]
[356948026,1743479448220,-511.28464989,0.00020676,2]
[356948028,1743479448230,-511.18643644,0.00020676,2]
[356948030,1743479448240,-505.44934721,0.00020676,2]
[356948032,1743479448250,-510.53263422,0.00020676,2]
[356948034,1743479448260,-505.02751676,0.00020676,2]
[356948036,1743479448271,-505.7132719,0.00020676,2]
[356948038,1743479448280,-501.33088721,0.00020676,2]
[356948040,1743479448290,-503.06928216,0.00020676,2]
[356948042,1743479448300,-518.18055539,0.00020676,2]
[356948044,1743479448309,-505.2191064,0.00020676,2]
[356948046,1743479448319,-507.03389152,0.00020676,2]
[356948048,1743479448329,-451.56517012,0.00020676,2]
[356948050,1743479448339,-504.59861282,0.00020676,2]
[356948052,1743479448349,-503.68744409,0.00020676,2]
[356948054,1743479448358,-503.57758707,0.00020676,2]
[356948056,1743479448368,-504.63440101,0.00020676,2]
[356948058,1743479448378,-503.13589954,0.00020676,2]
[356948060,1743479448388,-509.42991008,0.00020676,2]
[356948062,1743479448398,-509.82436209,0.00020676,2]
[356948064,1743479448408,-504.62962731,0.00020676,2]
[356948066,1743479448418,-508.62719352,0.00020676,2]
[356948068,1743479448428,-504.41710558,0.00020676,2]
[356948070,1743479448438,-504.02334918,0.00020676,2]
[356948072,1743479448448,-513.63290103,0.00020676,2]
[356948074,1743479448458,-540.75149856,0.00020676,2]
[356948076,1743479448469,-505.75970297,0.00020676,2]
[356948078,1743479448480,-509.13942042,0.00020676,2]
[356948080,1743479448490,-646.99416007,0.00020676,2]
[356948083,1743479448500,-504.05443521,0.00020676,2]
[356948084,1743479448510,-507.67341025,0.00020676,2]
[356948086,1743479448520,-507.57849578,0.00020676,2]
[356948088,1743479448530,-548.37219555,0.00020676,2]
[356948090,1743479448540,-503.57410922,0.00020676,2]
[356948092,1743479448549,-505.47195117,0.00020676,2]
[356948094,1743479448559,-505.40061316,0.00020676,2]
[356948096,1743479448569,-501.77597092,0.00020676,2]
[356948098,1743479448579,-505.24652991,0.00020676,2]
[356948100,1743479448589,-504.7744122,0.00020676,2]
[356948103,1743479448599,-510.82944539,0.00020676,2]
[356948105,1743479448609,-236.60834836,0.00020676,2]
[356948106,1743479448618,-503.7758661,0.00020676,2]
[356948108,1743479448632,-506.07267276,0.00020676,2]
[356948110,1743479448642,-183.72070432,0.00020676,2]
[356948112,1743479448653,-511.60192344,0.00020676,2]
[356948114,1743479448663,-501.68633479,0.00020676,2]
[356948116,1743479448674,-312.77666495,0.00020676,2]
[356948118,1743479448685,-500.77684577,0.00020676,2]
[356948120,1743479448695,-500.0,0.00020676,2]
[356948122,1743479448707,-500.0,0.00020676,2]
[356948124,1743479448717,-522.89797555,0.00020676,2]
[356948126,1743479448727,-501.9452659,0.00020676,2]
[356948128,1743479448737,-500.0,0.00020676,2]
[356948130,1743479448746,-505.45155745,0.00020676,2]
[356948132,1743479448756,-524.60468049,0.00020676,2]
[356948134,1743479448766,-500.0,0.00020676,2]
[356948136,1743479448776,-500.0,0.00020676,2]
[356948138,1743479448786,-500.0,0.00020676,2]
[356948140,1743479448797,-533.63653499,0.00020676,2]
[356948143,1743479448807,-500.0,0.00020676,2]
[356948145,1743479448817,-505.24599256,0.00020676,2]
[356948147,1743479448827,-500.0,0.00020676,2]
[356948149,1743479448837,-504.43157063,0.00020676,2]
[356948151,1743479448847,-505.80354612,0.00020676,2]
[356948153,1743479448857,-511.16793834,0.00020676,2]
[356948155,1743479448866,-500.0,0.00020676,2]
[356948157,1743479448876,-500.0,0.00020676,2]
[356948159,1743479448886,-236.44729883,0.00020676,2]
[356948161,1743479448896,-501.50454106,0.00020676,2]
[356948163,1743479448905,-537.94667363,0.00020676,2]
[356948165,1743479448915,-504.0696743,0.00020676,2]
[356948167,1743479448925,-512.83231123,0.00020676,2]
[356948169,1743479448934,-500.0,0.00020676,2]
[356948171,1743479448944,-500.86499046,0.00020676,2]
[356948173,1743479448954,-500.0,0.00020676,2]
[356948175,1743479448963,-504.05312677,0.00020676,2]
[356948177,1743479448973,-500.86870682,0.00020676,2]
[356948179,1743479448983,-513.83020219,0.00020676,2]
[356948181,1743479448993,-527.36090914,0.00020676,2]
[356948183,1743479449002,-519.28496742,0.00020676,2]
[356948185,1743479449012,-500.0,0.00020676,2]
[356948187,1743479449022,-511.12261874,0.00020676,2]
[356948189,1743479449032,-586.42907306,0.00020676,2]
[356948191,1743479449043,-1029.88015653,0.00020676,2]
[356948193,1743479449053,-500.0,0.00020676,2]
[356948195,1743479449063,-423.29642293,0.00020676,2]
[356948197,1743479449073,-510.29938793,0.00020676,2]
[356948200,1743479449083,-506.32633495,0.00020676,2]
[356948202,1743479449093,-500.0,0.00020676,2]
[356948204,1743479449103,-514.71624076,0.00020676,2]
[356948206,1743479449113,-522.39874869,0.00020676,2]
[356948208,1743479449123,-177.43396178,0.00020676,2]
[356948210,1743479449133,-515.5893215,0.00020676,2]
[356948212,1743479449143,-506.13324942,0.00020676,2]
[356948214,1743479449153,-521.20764315,0.00020676,2]
[356948216,1743479449164,-515.6201233,0.00020676,2]
[356948218,1743479449173,-509.98437349,0.00020676,2]
[356948220,1743479449182,-504.6468914,0.00020676,2]
[356948222,1743479449191,-527.77058005,0.00020676,2]
[356948224,1743479449201,-505.76457778,0.00020676,2]
[356948226,1743479449210,-520.48917494,0.00020676,2]
[356948228,1743479449219,-500.0,0.00020676,2]
[356948230,1743479449229,-500.0,0.00020676,2]
[356948232,1743479449239,-250.88916437,0.00020676,2]
[356948234,1743479449249,-507.64334753,0.00020676,2]
[356948236,1743479449258,-518.52733404,0.00020676,2]
[356948238,1743479449268,-503.34101558,0.00020676,2]
[356948240,1743479449278,-500.0,0.00020676,2]
[356948242,1743479449287,-201.45755864,0.00020676,2]
[356948244,1743479449295,-500.0,0.00020676,2]
[356948246,1743479449304,-511.63678835,0.00020676,2]
[356948248,1743479449313,-500.0,0.00020676,2]
[356948250,1743479449323,-511.16334821,0.00020676,2]
[356948252,1743479449333,-502.75989816,0.00020676,2]
[356948254,1743479449343,-519.09479051,0.00020676,2]
[356948256,1743479449354,-502.21433462,0.00020676,2]
[356948258,1743479449364,-501.25026962,0.00020676,2]
[356948260,1743479449374,-1203.01,0.00020676,2]
[356948262,1743479449383,-199.98913039,0.00020676,2]
[356948265,1743479449400,-316.3043087,0.00020676,2]
[356948267,1743479449409,-500.0,0.00020676,2]
[356948269,1743479449419,-510.38637417,0.00020676,2]
[356948271,1743479449428,-500.0,0.00020676,2]
[356948273,1743479449437,-526.06422997,0.00020676,2]
[356948275,1743479449446,-505.6486233,0.00020676,2]
[356948277,1743479449456,-505.89488715,0.00020676,2]
[356948279,1743479449466,-500.0,0.00020676,2]
[356948281,1743479449476,-511.84067,0.00020676,2]
[356948283,1743479449486,-500.0,0.00020676,2]
[356948285,1743479449496,-515.23919495,0.00020676,2]
[356948287,1743479449506,-500.0,0.00020676,2]
[356948289,1743479449515,-515.4207865,0.00020676,2]
[356948291,1743479449525,-513.0762923,0.00020676,2]
[356948293,1743479449535,-537.62990462,0.00020676,2]
[356948295,1743479449545,-385.65537182,0.00020676,2]
[356948298,1743479449560,-130.55777816,0.00020676,2]
[356948300,1743479449570,-505.06321295,0.00020676,2]
[356948302,1743479449581,-500.0,0.00020676,2]
[356948304,1743479449590,-516.07735012,0.00020676,2]
[356948306,1743479449600,-504.09254249,0.00020676,2]
[356948308,1743479449610,-505.49474218,0.00020676,2]
[356948310,1743479449620,-500.0,0.00020676,2]
[356948312,1743479449634,-510.97374566,0.00020676,2]
[356948314,1743479449644,-519.31999389,0.00020676,2]
[356948316,1743479449653,-384.83281367,0.00020676,2]
[356948318,1743479449663,-613.85301664,0.00020676,2]
[356948320,1743479449673,-5608.07391732,0.00020677,2]
[356954521,1743480070838,250.0,0.000137,30]
[356954522,1743480071187,250.0,0.000117,30]
[356954523,1743480071512,310.206277,9.7e-05,30]
[356954527,1743480371392,250.0,0.000137,30]
[356954528,1743480371810,250.0,0.000117,30]
[356954529,1743480372218,250.0,9.7e-05,30]
[356954530,1743480372793,250.0,7.7e-05,30]
[356954531,1743480373073,250.0,5.7e-05,30]
[356954532,1743480373504,250.0,3.7e-05,30]
[356954533,1743480373925,250.0,1.7e-05,30]
[356954537,1743480632247,-250.0,0.000157,30]
[356954538,1743480632257,-250.0,0.000177,30]
[356954539,1743480632267,-3403.748815,0.00018621,3]
[356954540,1743480632277,-3403.748815,0.00018989,3]
[356954541,1743480632286,-1544.43788132,0.00019119,2]
[356954542,1743480632296,-3403.748815,0.00019356,3]
[356954543,1743480632305,-3403.748815,0.0001944,4]
[356954544,1743480632316,-250.0,0.000197,30]
[356954545,1743480632326,-3403.748815,0.0001971,15]
[356954546,1743480632336,-3403.748815,0.00019723,3]
[356954547,1743480632345,-3403.748815,0.00019774,4]
[356954548,1743480632355,-2747.56199986,0.000198,7]
[356954889,1743480646376,-515.92873591,0.00019722,2]
[356954890,1743480646387,-656.18681514,0.000198,7]
[356954891,1743480646397,-202.87243993,0.000199,2]
[356954892,1743480646406,-153.99473446,0.0002,2]
[356954893,1743480646428,-445.00526454,0.0002,2]
[356954895,1743480646439,-160.0,0.00020077,2]
[356954896,1743480646449,-418.94013069,0.0002008,2]
[356954897,1743480646459,-3403.748815,0.0002009,3]
[356954898,1743480646469,-3403.748815,0.00020108,4]
[356954899,1743480646479,-3403.748815,0.00020148,15]
[356954900,1743480646489,-500.0,0.00020212,2]
[356954901,1743480646499,-500.0,0.00020212,2]
[356954902,1743480646509,-500.0,0.00020212,2]
[356954903,1743480646519,-500.0,0.00020212,2]
[356954904,1743480646529,-500.0,0.00020212,2]
[356954905,1743480646539,-500.0,0.00020212,2]
[356954906,1743480646548,-285.38421713,0.00020212,2]
[356954907,1743480646559,-277.11047448,0.00020212,2]
[356954908,1743480646569,-500.0,0.00020212,2]
[356954909,1743480646579,-160.0,0.00020213,3]
[356954910,1743480646589,-3403.748815,0.0002024,7]
[356954911,1743480646599,-192.5366991,0.00020316,2]
[356954912,1743480646609,-1052.06410071,0.00020375,2]
[356954913,1743480646619,-3403.748815,0.00020442,4]
[356954914,1743480646629,-1378.86015227,0.00020464,2]
[356954915,1743480646639,-151.0,0.00020464,2]
[356954916,1743480646649,-200.0,0.00020464,2]
[356954917,1743480646659,-388.46,0.00020466,3]
[356954918,1743480646669,-500.0,0.00020473,2]
[356954919,1743480646679,-500.0,0.00020473,2]
[356954920,1743480646692,-500.0,0.00020473,2]
[356954921,1743480646702,-500.0,0.00020473,2]
[356954922,1743480646711,-500.0,0.00020473,2]
[356954923,1743480646721,-500.0,0.00020473,2]
[356954924,1743480646731,-500.0,0.00020473,2]
[356954925,1743480646741,-500.0,0.00020473,2]
[356954926,1743480646751,-500.0,0.00020473,2]
[356954927,1743480646761,-420.27099064,0.00020473,2]
[356954928,1743480646770,-500.0,0.00020473,2]
[356954929,1743480646780,-170.71499812,0.00020473,2]
[356954930,1743480646790,-500.0,0.00020473,2]
[356954931,1743480646799,-500.0,0.00020473,2]
[356954932,1743480646810,-500.0,0.00020474,2]
[356954933,1743480646822,-500.0,0.00020474,2]
[356954934,1743480646831,-500.0,0.00020474,2]
[356954935,1743480646841,-500.0,0.00020474,2]
[356954936,1743480646851,-500.0,0.00020474,2]
[356954937,1743480646861,-500.0,0.00020474,2]
[356954938,1743480646871,-351.3492157,0.00020474,2]
[356954939,1743480646881,-500.0,0.00020474,2]
[356954940,1743480646891,-517.02391672,0.00020474,2]
[356954941,1743480646901,-545.97,0.00020474,2]
[356954942,1743480646911,-512.99492136,0.00020474,2]
[356954943,1743480646921,-261.94164466,0.00020474,2]
[356954944,1743480646931,-500.0,0.00020474,2]
[356954945,1743480646941,-500.0,0.00020474,2]
[356954946,1743480646951,-500.0,0.00020474,2]
[356954947,1743480646961,-500.0,0.00020474,2]
[356954948,1743480646971,-527.17322486,0.00020474,2]
[356954949,1743480646984,-500.0,0.00020474,2]
[356954950,1743480646994,-239.17349145,0.00020474,2]
[356954951,1743480647004,-516.05263715,0.00020474,2]
[356954952,1743480647014,-500.0,0.00020474,2]
[356954953,1743480647024,-500.0,0.00020474,2]
[356954954,1743480647034,-389.77620931,0.00020474,2]
[356954955,1743480647044,-500.0,0.00020474,2]
[356954956,1743480647055,-500.0,0.00020474,2]
[356954957,1743480647065,-500.0,0.00020474,2]
[356954958,1743480647075,-500.0,0.00020474,2]
[356954959,1743480647086,-500.0,0.00020474,2]
[356954960,1743480647096,-500.0,0.00020474,2]
[356954961,1743480647106,-500.0,0.00020475,2]
[356954962,1743480647116,-507.926934,0.00020475,2]
[356954963,1743480647125,-283.74392759,0.00020475,2]
[356954964,1743480647135,-500.0,0.00020475,2]
[356954965,1743480647145,-517.20940068,0.00020475,2]
[356954966,1743480647156,-521.99041623,0.00020475,2]
[356954967,1743480647165,-1254.7,0.00020475,2]
[356954968,1743480647175,-524.46713969,0.00020475,2]
[356954969,1743480647185,-500.0,0.00020475,2]
[356954970,1743480647195,-517.1958164,0.00020475,2]
[356954971,1743480647206,-500.0,0.00020475,2]
[356954972,1743480647218,-520.57833037,0.00020475,2]
[356954973,1743480647227,-500.0,0.00020475,2]
[356954974,1743480647237,-529.00073573,0.00020475,2]
[356954975,1743480647247,-365.88494939,0.00020475,2]
[356954976,1743480647256,-506.28926438,0.00020475,2]
[356954977,1743480647266,-510.43979006,0.00020475,2]
[356954978,1743480647276,-513.81692032,0.00020475,2]
[356954979,1743480647286,-512.37799308,0.00020475,2]
[356954980,1743480647296,-740.61,0.00020475,2]
[356954981,1743480647307,-500.0,0.00020475,2]
[356954982,1743480647317,-507.51378887,0.00020475,2]
[356954983,1743480647327,-500.0,0.00020475,2]
[356954984,1743480647336,-500.0,0.00020475,2]
[356954985,1743480647346,-500.0,0.00020475,2]
[356954986,1743480647356,-500.0,0.00020475,2]
[356954987,1743480647366,-500.0,0.00020475,2]
[356954988,1743480647376,-375.19844451,0.00020475,2]
[356954989,1743480647386,-513.84566794,0.00020475,2]
[356954990,1743480647396,-632.20635871,0.00020475,2]
[356954991,1743480647405,-513.95407744,0.00020475,2]
[356954992,1743480647415,-416.81627615,0.00020475,2]
[356954993,1743480647424,-409.14046486,0.00020475,2]
[356954994,1743480647434,-163.20714614,0.00020475,2]
[356954995,1743480647444,-500.0,0.00020475,2]
[356954996,1743480647454,-500.0,0.00020475,2]
[356954997,1743480647463,-500.0,0.00020475,2]
[356954998,1743480647473,-503.5784875,0.00020475,2]
[356954999,1743480647483,-500.0,0.00020475,2]
[356955000,1743480647493,-504.81674478,0.00020475,2]
[356955001,1743480647503,-523.92532708,0.00020476,3]
[356955002,1743480647512,-192.65099282,0.00020476,3]
[356955003,1743480647521,-266627.87226216,0.00020476,2]
[356955005,1743480669841,250.0,0.000137,30]
[356955006,1743480670118,250.0,0.000117,30]
[356955007,1743480670420,250.0,9.7e-05,30]
[356955008,1743480670694,250.0,7.7e-05,30]
[356955009,1743480670988,250.0,5.7e-05,30]
[356955010,1743480671342,250.0,3.7e-05,30]
[356955011,1743480671585,250.0,1.7e-05,30]
[356955013,1743480971401,250.0,0.000137,30]
[356955014,1743480971761,472.831993,0.000117,30]
[356955020,1743481719685,459.61583081,9e-05,2]
[356955071,1743481832376,-250.0,0.000157,30]
[356955073,1743481832387,-250.0,0.000177,30]
[356955075,1743481832397,-4065.75737289,0.00018601,2]
[356955077,1743481832409,-629.0962119,0.00018979,2]
[356955079,1743481832421,-1928.790995,0.0001908,4]
[356955081,1743481832431,-203.374987,0.00019197,2]
[356955083,1743481832441,-1928.790995,0.00019308,4]
[356955085,1743481832451,-300.0,0.00019535,2]
[356955087,1743481832461,-1928.790995,0.00019536,4]
[356955089,1743481832471,-1005.5279899,0.00019621,2]
[356955091,1743481832481,-191.60750084,0.000197,30]
[356955127,1743481838320,-58.39249916,0.000197,30]
[356955128,1743481838332,-1928.790995,0.0001971,15]
[356955129,1743481838343,-160.0,0.00019716,2]
[356955131,1743481838352,-523.22,0.0001972,2]
[356955133,1743481838362,-500.0,0.0001972,2]
[356955135,1743481838372,-500.0,0.0001972,2]
[356955137,1743481838382,-500.0,0.0001972,2]
[356955139,1743481838392,-500.0,0.0001972,2]
[356955141,1743481838403,-500.0,0.0001972,2]
[356955143,1743481838412,-579.79136505,0.0001972,2]
[356955145,1743481838422,-500.0,0.0001972,2]
[356955147,1743481838431,-500.0,0.0001972,2]
[356955149,1743481838441,-500.0,0.0001972,2]
[356955151,1743481838450,-500.0,0.0001972,2]
[356955153,1743481838459,-500.0,0.0001972,2]
[356955155,1743481838469,-500.0,0.0001972,2]
[356955157,1743481838478,-202.71575814,0.0001972,2]
[356955159,1743481838487,-500.0,0.0001972,2]
[356955161,1743481838496,-500.0,0.0001972,2]
[356955163,1743481838506,-205.94015782,0.0001972,2]
[356955165,1743481838516,-500.0,0.0001972,2]
[356955167,1743481838526,-500.0,0.0001972,2]
[356955169,1743481838536,-500.0,0.00019721,2]
[356955171,1743481838545,-500.0,0.00019721,2]
[356955173,1743481838555,-477.10467972,0.00019721,2]
[356955175,1743481838564,-500.0,0.00019721,2]
[356955177,1743481838574,-153.18114383,0.00019721,2]
[356955179,1743481838583,-500.0,0.00019721,2]
[356955181,1743481838593,-533.07114222,0.00019721,2]
[356955183,1743481838603,-500.0,0.00019721,2]
[356955185,1743481838612,-500.0,0.00019721,2]
[356955187,1743481838623,-300.0,0.00019721,2]
[356955189,1743481838633,-214.52234178,0.00019721,2]
[356955199,1743481841333,-285.47765822,0.00019721,2]
[356955200,1743481841343,-500.0,0.00019721,2]
[356955201,1743481841353,-500.0,0.00019721,2]
[356955202,1743481841362,-521.40081204,0.00019721,2]
[356955203,1743481841372,-500.0,0.00019721,2]
[356955204,1743481841383,-500.0,0.00019721,2]
[356955205,1743481841393,-500.0,0.00019721,2]
[356955206,1743481841404,-500.0,0.00019721,2]
[356955207,1743481841414,-500.0,0.00019721,2]
[356955208,1743481841424,-515.870007,0.00019721,2]
[356955209,1743481841434,-500.0,0.00019721,2]
[356955210,1743481841445,-500.0,0.00019721,2]
[356955211,1743481841455,-180.31090952,0.00019722,2]
[356955212,1743481841465,-514.65385683,0.00019722,2]
[356955213,1743481841475,-500.0,0.00019722,2]
[356955214,1743481841486,-500.0,0.00019722,2]
[356955215,1743481841497,-500.0,0.00019722,2]
[356955216,1743481841507,-351.11060579,0.00019722,2]
[356955217,1743481841517,-418.94013069,0.00019763,2]
[356955218,1743481841527,-1928.790995,0.00019764,4]
[356955219,1743481841537,-1928.790995,0.000198,7]
[356955220,1743481841547,-202.87243993,0.000199,2]
[356955221,1743481841558,-283.92601005,0.00019983,2]
[356955222,1743481841568,-1928.790995,0.00019992,4]
[356955223,1743481841578,-523.22,0.00019994,2]
[356955224,1743481841588,-500.0,0.00019994,2]
[356955225,1743481841601,-500.0,0.00019994,2]
[356955226,1743481841611,-500.0,0.00019994,2]
[356955227,1743481841621,-500.0,0.00019994,2]
[356955228,1743481841631,-580.37,0.00019995,2]
[356955229,1743481841641,-500.0,0.00019995,2]
[356955230,1743481841651,-500.0,0.00019995,2]
[356955231,1743481841661,-615.56598466,0.00019995,2]
[356955232,1743481841671,-1202.42,0.00019995,2]
[356955233,1743481841681,-500.0,0.00019995,2]
[356955234,1743481841691,-500.0,0.00019995,2]
[356955235,1743481841701,-500.0,0.00019995,2]
[356955236,1743481841712,-500.0,0.00019995,2]
[356955237,1743481841721,-1152.69,0.00019995,2]
[356955238,1743481841733,-500.0,0.00019995,2]
[356955239,1743481841743,-500.0,0.00019995,2]
[356955240,1743481841753,-500.0,0.00019995,2]
[356955241,1743481841763,-500.0,0.00019995,2]
[356955242,1743481841773,-512.44892762,0.00019995,2]
[356955243,1743481841782,-500.0,0.00019995,2]
[356955244,1743481841793,-500.0,0.00019995,2]
[356955245,1743481841803,-500.0,0.00019995,2]
[356955246,1743481841813,-384.07393204,0.00019995,2]
[356955247,1743481841824,-500.0,0.00019995,2]
[356955248,1743481841833,-500.0,0.00019995,2]
[356955249,1743481841844,-382.12169385,0.00019995,2]
[356955250,1743481841855,-500.0,0.00019995,2]
[356955251,1743481841864,-500.0,0.00019995,2]
[356955252,1743481841873,-1152.88,0.00019995,2]
[356955253,1743481841883,-500.0,0.00019995,2]
[356955254,1743481841893,-500.0,0.00019995,2]
[356955255,1743481841903,-512.92662501,0.00019995,2]
[356955256,1743481841913,-520.20254668,0.00019996,2]
[356955257,1743481841922,-366.6766531,0.00019996,2]
[356955258,1743481841932,-500.0,0.00020147,2]
[356955259,1743481841942,-1928.790995,0.00020148,15]
[356955260,1743481841952,-913.5,0.00020207,15]
[356955261,1743481841962,-1928.790995,0.0002024,7]
[356955262,1743481841972,-183.35915126,0.00020268,2]
[356955263,1743481841983,-523.22,0.00020268,2]
[356955264,1743481841992,-500.0,0.00020268,2]
[356955265,1743481842002,-500.0,0.00020268,2]
[356955266,1743481842011,-500.0,0.00020268,2]
[356955267,1743481842021,-500.0,0.00020268,2]
[356955268,1743481842031,-500.0,0.00020269,2]
[356955269,1743481842041,-500.0,0.00020269,2]
[356955270,1743481842051,-1202.42,0.00020269,2]
[356955271,1743481842061,-500.0,0.00020269,2]
[356955272,1743481842071,-500.0,0.00020269,2]
[356955273,1743481842081,-500.0,0.00020269,2]
[356955274,1743481842090,-500.0,0.00020269,2]
[356955275,1743481842101,-1152.69,0.00020269,2]
[356955276,1743481842111,-638.5023337,0.00020269,2]
[356955277,1743481842121,-500.0,0.00020269,2]
[356955278,1743481842130,-502.78947791,0.00020269,2]
[356955279,1743481842141,-500.0,0.00020269,2]
[356955280,1743481842150,-171.62313652,0.00020269,2]
[356955281,1743481842160,-267.21787258,0.00020269,2]
[356955430,1743483043851,-203.3749884,0.00019048,2]
[356955431,1743483043862,-404.2080116,0.00019621,2]
[356955442,1743483046649,-1982.9632165,0.00018948,2]
[356955443,1743483046659,-309.5116107,0.00019621,2]
[356955444,1743483046709,-151.0,0.00019709,2]
[356955445,1743483046719,-200.0,0.00019709,2]
[356955446,1743483046728,-160.0,0.00019715,2]
[356955447,1743483046739,-300.0,0.00019717,2]
[356955448,1743483046748,-522.88223976,0.00019718,2]
[356955449,1743483046758,-500.0,0.00019718,2]
[356955450,1743483046767,-321.35947774,0.00019718,2]
[356955451,1743483046777,-500.0,0.00019718,2]
[356955452,1743483046788,-446.42,0.00019718,2]
[356955453,1743483046798,-494.94497812,0.00019718,2]
[356955454,1743483046839,-5.05502188,0.00019718,2]
[356955455,1743483046848,-500.0,0.00019718,2]
[356955456,1743483046858,-179.34497792,0.00019718,2]
[356955495,1743484231835,-709.80949069,0.00019423,2]
[356955496,1743484231946,-1312.60399607,0.00019423,2]
[356955497,1743484231956,-3602.78489397,0.00019619,2]
[356955541,1743484240090,-33.16353213,0.00019619,2]
[356955542,1743484240100,-160.0,0.00019625,2]
[356955543,1743484240110,-300.0,0.00019715,2]
[356955544,1743484240122,-3148.90512864,0.00019716,3]
[356955545,1743484240132,-2987.03607501,0.00019716,3]
[356955546,1743484240142,-500.0,0.00019716,2]
[356955547,1743484240153,-500.0,0.00019716,2]
[356955548,1743484240163,-1152.93,0.00019717,2]
[356955549,1743484240173,-500.0,0.00019717,2]
[356955550,1743484240183,-500.0,0.00019717,2]
[356955551,1743484240193,-500.0,0.00019717,2]
[356955552,1743484240202,-500.0,0.00019717,2]
[356955553,1743484240212,-481.38141654,0.00019717,2]
[356955554,1743484240222,-500.0,0.00019717,2]
[356955555,1743484240231,-1056.63,0.00019717,2]
[356955556,1743484240241,-500.0,0.00019717,2]
[356955557,1743484240251,-500.0,0.00019717,2]
[356955558,1743484240261,-500.0,0.00019717,2]
[356955559,1743484240271,-500.0,0.00019717,2]
[356955560,1743484240280,-500.0,0.00019717,2]
[356955561,1743484240291,-439.50474663,0.00019717,2]
[356955562,1743484240302,-504.45234202,0.00019717,2]
[356955563,1743484240320,-586.57724027,0.00019717,2]
[356955564,1743484240330,-500.0,0.00019717,2]
[356955565,1743484240340,-503.0658386,0.00019717,2]
[356955566,1743484240350,-500.0,0.00019717,2]
[356955567,1743484240359,-500.0,0.00019717,2]
[356955568,1743484240369,-505.21287341,0.00019717,2]
[356955569,1743484240379,-500.0,0.00019717,2]
[356955570,1743484240389,-511.84598598,0.00019717,2]
[356955571,1743484240398,-1104.85,0.00019717,2]
[356955572,1743484240408,-513.51055002,0.00019717,2]
[356955573,1743484240418,-639.78,0.00019717,2]
[356955574,1743484240428,-500.0,0.00019717,2]
[356955575,1743484240438,-500.0,0.00019717,2]
[356955576,1743484240448,-500.0,0.00019717,2]
[356955577,1743484240457,-515.07754448,0.00019717,2]
[356955578,1743484240468,-344.59261954,0.00019717,2]
[356955579,1743484240477,-500.97589576,0.00019717,2]
[356955580,1743484240487,-501.69623009,0.00019717,2]
[356955581,1743484240496,-500.0,0.00019717,2]
[356955582,1743484240507,-500.0,0.00019717,2]
[356955583,1743484240517,-500.0,0.00019717,2]
[356955584,1743484240527,-500.0,0.00019717,2]